Cogmind - Beta 10.2 --- EXPLORER MODE // 2021.05.13 @ 16:48:37 Player: Chydax Result: Destroyed by D-53 Grenadier with Mini Grenade Launcher Performance ------------- Evolutions (0) 0 Regions Visited (2) 400 Robots Destroyed (14) 70 Value Destroyed (251) 251 Prototype IDs (0) 0 Alien Tech Used (0) 0 Bonus (-183) -183 TOTAL SCORE: 538 Bonus ------- Follower Combat Kills 14 Friendly Fire -197 Cogmind --------- Core Integrity 0/250 Matter 226/300 Energy 107/125 System Corruption 0% Temperature Cool (0) Movement Rolling (110) Ox2 Location -10/Mines Parts ------- > --- POWER (1) -------- Light Ion Engine > --- PROPULSION (2) --- Armored Wheel > --- UTILITY (2) ------ High-capacity Storage Unit > --- WEAPON (3) ------- (None) > --- INVENTORY (12) --- (None) Peak State ------------ > --- POWER ------------ Ion Engine > --- PROPULSION ------- Armored Wheel Armored Wheel > --- UTILITY ---------- Large Storage Unit Targeting Computer > --- WEAPON ----------- EM Pulse Gun Assault Rifle Rocket Launcher > --- INVENTORY -------- Light Ion Engine Light Treads Light Treads Aluminum Leg Aluminum Leg Improved Sensor Array Signal Interpreter Propulsion Shielding Weapon Shielding [Rating: 12] Favorites ----------- Power Ion Engine Engine Ion Engine Propulsion Armored Wheel Treads Light Treads Wheel Armored Wheel Utility Signal Interpreter Device Improved Sensor Array Storage High-capacity Storage Unit Processor Signal Interpreter Protection Weapon Shielding Weapon Assault Rifle Energy Gun EM Pulse Gun Ballistic Gun Assault Rifle Launcher Rocket Launcher Build | -11 -10 -10 ------- Run | Scr Mat Min Slots Evolved 1 | . 1 . Power . | . . . Propulsion . | . . . Utility . | . . . Weapon 1 | . 1 . Parts Attached 19 | 7 9 3 Power 2 | 1 . 1 Engine 2 | 1 . 1 Core . | . . . Reactor . | . . . Propulsion 4 | 2 2 . Treads 2 | 2 . . Leg . | . . . Wheel 2 | . 2 . Hover . | . . . Flight . | . . . Utility 7 | 2 4 1 Device 1 | . 1 . Storage 3 | 1 1 1 Processor 2 | . 2 . Hackware . | . . . Protection 1 | 1 . . Artifact . | . . . Weapon 6 | 2 3 1 Energy Gun 3 | 1 2 . Energy Cannon . | . . . Ballistic Gun 1 | 1 . . Ballistic Cannon . | . . . Launcher 2 | . 1 1 Special Weapon . | . . . Impact Weapon . | . . . Slashing Weapon . | . . . Piercing Weapon . | . . . Special Melee Weapon . | . . . Unidentified Prototypes . | . . . Parts Lost 6 | . . 6 Power 1 | . . 1 Propulsion 1 | . . 1 Utility . | . . . Weapon 4 | . . 4 Highest Loss Streak 6 | . . 6 Average Slot Usage (%) 96 | . 99 91 Engine 11 | . 12 11 Wheel 24 | . 23 24 Device 8 | . 10 5 Storage 3 | . 1 6 Processor 9 | . 11 5 Energy Gun 11 | . 11 11 Ballistic Gun 11 | . 12 11 Launcher 11 | . 11 11 Naked Turns . | . . . Heaviest Build 45 | 18 29 45 Greatest Support 40 | 40 40 24 Greatest Overweight (x) 2 | . 1 2 Average Overweight (x) . | . . . Largest Inventory Capacity 12 | 8 10 12 Average Capacity 6 | 7 4 8 Most Carried 9 | 7 9 3 Average Carried 3 | 4 3 1 Final Capacity 12 | 8 4 12 Final Carried 7 | 7 2 . Class Distribution -------------------- 95% | Hacker-Mutant 4% | Hacker-Gunner Dominant Class ---------------- Hacker-Mutant | -10/Materials Hacker-Mutant | -10/Mines Resources | -11 -10 -10 ----------- Run | Scr Mat Min Matter Collected 469 | 192 267 10 Remotely . | . . . Salvage Created 400 | . 344 56 Parts 15 | . 15 . Haulers Intercepted 2 | . 2 . Recyclers Shooed . | . . . Parts Field Recycled . | . . . Retrieved Matter . | . . . Parts Self-Destructed . | . . . Prevented . | . . . Kills | -11 -10 -10 ------- Run | Scr Mat Min Combat Hostiles Destroyed 16 | . 8 8 Guns 5 | . 5 . AOE 11 | . 3 8 Classes Destroyed 5 | . 4 1 Hauler 2 | . 2 . Watcher 3 | . 3 . Swarmer 4 | . 4 . Grunt 5 | . 4 1 Assembled 8 | . . 8 Best Kill Streak 8 | . 3 8 Combat Bots Only 8 | . 2 8 Max Kills in Single Turn 5 | . 2 5 Gunslinging . | . . . Exploded 4 | . 1 4 Melee . | . . . Uniques/NPCs Destroyed . | . . . Combat | -11 -10 -10 -------- Run | Scr Mat Min Damage Taken 789 | . 124 665 Core 260 | . 20 240 Absorbed by Shields . | . . . Core Remaining (%) 100 | 100 . . Volleys Fired 36 | . 25 11 Largest 3 | . 2 3 Hottest 93 | . 73 93 Shots Fired 69 | . 49 20 Gun 60 | . 46 14 Cannon . | . . . Launcher 9 | . 3 6 Special . | . . . Kinetic 28 | . 22 6 Thermal . | . . . Explosive 9 | . 3 6 Electromagnetic 32 | . 24 8 Robot Hit Streak 9 | . 9 4 Robot Miss Streak 3 | . 3 3 Penetration Max . | . . . Secondary Targets . | . . . Shots Hit Robots 42 | . 30 12 Core Hits 38 | . 20 18 Critical Hits . | . . . Critical Kills . | . . . Critical Parts Destroyed . | . . . Melee Attacks . | . . . Impact . | . . . Slashing . | . . . Piercing . | . . . Sneak Attacks . | . . . Combat Hostiles . | . . . Follow-up Attacks . | . . . Damage Inflicted 1710 | . 795 915 Guns 466 | . 380 86 Cannons . | . . . Explosions 1241 | . 415 826 Melee . | . . . Ramming 3 | . . 3 Kinetic 178 | . 126 52 Thermal 61 | . 61 . Explosive 1180 | . 354 826 Electromagnetic 288 | . 254 34 Impact . | . . . Slashing . | . . . Piercing . | . . . Highest Corruption . | . . . Average Corruption . | . . . Corruption Purged . | . . . Overload Shots . | . . . Overflow Damage 70 | . 15 55 Projectiles . | . . . Explosions 70 | . 15 55 Melee . | . . . Knockbacks . | . . . Impact . | . . . Kinetic . | . . . Secondary . | . . . Self-Inflicted Damage 48 | . 9 39 Shots 3 | . 1 2 Rammed 1 | . . 1 Targets Rammed 1 | . . 1 Kicked . | . . . Crushed . | . . . Highest Temperature 119 | . 68 119 Average Temperature 46 | . 39 58 Received Heat Transfer 170 | . 90 80 Siege Activations . | . . . Robots Corrupted . | . . . Combat Hostiles . | . . . Parts Fried 1 | . 1 . Impact Corruptions . | . . . Robots Melted . | . . . Combat Hostiles . | . . . Parts Melted . | . . . Heat Transferred 150 | . 150 . Parts Sabotaged . | . . . Parts Stolen . | . . . Parts Stripped . | . . . Power Chain Reactions 2 | . 2 . Missiles Intercepted . | . . . Alert | -11 -10 -10 ------- Run | Scr Mat Min Peak Influence 162 | . 162 56 Initial . | . . . Average 52 | . 85 11 Maximum Alert Level . | . . . Low Security (%) 100 | 100 100 100 Level 1 . | . . . Level 2 . | . . . Level 3 . | . . . Level 4 . | . . . Level 5 . | . . . High Security . | . . . Max Security . | . . . Squads Dispatched . | . . . Investigation . | . . . Extermination . | . . . Reinforcement . | . . . Assault . | . . . Garrison . | . . . Intercept . | . . . Construction Impeded . | . . . Haulers Reinforced . | . . . Stealth | -11 -10 -10 --------- Run | Scr Mat Min Distress Signals . | . . . Communications Jammed . | . . . Distress Signals . | . . . Times Spotted 37 | . 14 23 Peak Tracking Total 12 | . 3 12 Tactical Retreats 1 | . 1 . Traps | -11 -10 -10 ------- Run | Scr Mat Min Traps Triggered . | . . . Indirectly . | . . . Trap Hack Attempts . | . . . Triggered . | . . . Disarmed . | . . . Reprogrammed . | . . . Reused . | . . . Traps Extracted . | . . . Installed . | . . . Triggered . | . . . Machines | -11 -10 -10 ---------- Run | Scr Mat Min Machines Disabled 2 | . 1 1 Max in Single Turn 1 | . 1 1 Machines Sabotaged . | . . . Garrisons Compromised . | . . . Overloaded Fab Kills . | . . . Fab Network Shutdowns . | . . . Hacking | -11 -10 -10 --------- Run | Scr Mat Min Machines Accessed 6 | . 6 . Terminals 4 | . 4 . Fabricators . | . . . Repair Stations 1 | . 1 . Recycling Units 1 | . 1 . Scanalyzers . | . . . Garrison Access . | . . . Total Hacks 14 | . 14 . Successful 12 | . 12 . Failed 2 | . 2 . Catastrophic 1 | . 1 . Database Lockouts . | . . . Manual . | . . . Terminals 7 | . 7 . Fabricators . | . . . Repair Stations 2 | . 2 . Recycling Units 5 | . 5 . Scanalyzers . | . . . Garrison Access . | . . . Terminal Hacks 6 | . 6 . Record 5 | . 5 . Level Access Points 1 | . 1 . Fabricator Hacks . | . . . Repair Station Hacks 2 | . 2 . Scan Component 1 | . 1 . Repair 1 | . 1 . Recycling Unit Hacks 4 | . 4 . Recycle Component 1 | . 1 . Process 1 | . 1 . Report Inventory 1 | . 1 . Retrieve Matter 1 | . 1 . Scanalyzer . | . . . Garrison Access Hacks . | . . . Unauthorized Hacks . | . . . Terminals . | . . . Fabricators . | . . . Repair Stations . | . . . Recycling Units . | . . . Scanalyzers . | . . . Garrison Access . | . . . Data Cores Recovered . | . . . Used . | . . . Hacking Detections 3 | . 3 . Full Trace Events . | . . . Feedback Events . | . . . Feedback Blocked . | . . . Robot Schematics Acquired . | . . . Robots Built . | . . . Matter . | . . . Time . | . . . Total Robot Build Rating . | . . . Part Schematics Acquired . | . . . Parts Built . | . . . Matter . | . . . Time . | . . . Total Part Build Rating . | . . . Parts Repaired 1 | . 1 . Time 26 | . 26 . Parts Recycled 1 | . 1 . Recycled Matter 182 | . 182 . Retrieved Matter 182 | . 182 . Retrieved Components . | . . . Parts Scanalyzed . | . . . Part Schematics Acquired . | . . . Parts Damaged . | . . . Bothacking | -11 -10 -10 ------------ Run | Scr Mat Min Used RIF Installer . | . . . Robots Hacked . | . . . Non-combat . | . . . Combat . | . . . Robot Hacks Applied . | . . . Relay Couplers Released . | . . . Robots Rewired . | . . . Allies Hacked . | . . . Hacks Repelled . | . . . Allies | -11 -10 -10 -------- Run | Scr Mat Min Total Allies 3 | . . 3 Largest Group 3 | . . 3 Highest-Rated Group 40 | . . 40 Highest-Rated Ally 16 | . . 16 Total Orders . | . . . Ally Attacks 16 | . . 16 Total Damage 166 | . . 166 Kills 5 | . . 5 Allies Corrupted . | . . . Allies Melted . | . . . Intel | -11 -10 -10 ------- Run | Scr Mat Min Robot Analysis Total . | . . . Derelict Logs Recovered . | . . . Drone Launches . | . . . Drone Recoveries . | . . . Exploration | -11 -10 -10 ------------- Run | Scr Mat Min Turns Passed 1431 | 118 806 507 Spaces Moved 1223 | 53 724 446 Core 3 | 3 . . Treads 65 | 50 15 . Legs . | . . . Wheels 1155 | . 709 446 Hover . | . . . Flight . | . . . Fastest Speed 50 | 50 90 90 Average Speed 95 | 153 91 95 Slowest Speed 160 | 160 160 110 Overloaded Moves . | . . . Propulsion Burnouts . | . . . Robots Hopped . | . . . Cave-ins Triggered . | . . . Exploration Rate (%) 60 | 4 95 82 Regions Visited 2 Branch Regions 1 Pre-discovered Areas 1 | . . 1 Known Exits Taken 2 | 1 1 . Unknown Exits Taken . | . . . Scrap Searched . | . . . Spaces Dug . | . . . Terrain Destroyed 78 | . 32 46 Melee . | . . . Projectile . | . . . AOE 78 | . 32 46 Terrain Rammed . | . . . Walls Destroyed . | . . . Machines Disabled . | . . . Actions | -11 -10 -10 --------- Run | Scr Mat Min Total 1416 | 90 815 511 Wait 109 | 17 44 48 Move 1221 | 52 723 446 Hop . | . . . Pick Up 22 | 14 7 1 Fast Attach 1 | . 1 . Attach 10 | 7 1 2 Detach . | . . . Swap 8 | . 7 1 Drop 8 | . 7 1 Fire 36 | . 25 11 Melee . | . . . Ram 1 | . . 1 Kick . | . . . Crush . | . . . Escape Stasis . | . . . Rewire . | . . . Trap . | . . . Miscellaneous . | . . . Route ------- -11/Scrapyard -10/Materials (discovered 4 exits: *Mat x3 / *Min) -10/Mines (discovered 2 exits: *Mat x2) History --------- Turn | Location | Event 44 | -11/Scrapyard | Identified exit to Materials 44 | -11/Scrapyard | Discovered exit to Materials (range 15) 119 | -11/Scrapyard | Entered Materials 119 | -10/Materials | Evolved 1 slot: Weapon x1 220 | -10/Materials | Identified exit to Mines 220 | -10/Materials | Discovered exit to Mines (range 10) 268 | -10/Materials | Identified exit to Materials 268 | -10/Materials | Discovered exit to Materials (range 16) 315 | -10/Materials | Build established: Hacker-Mutant 692 | -10/Materials | Repaired EM Pulse Gun 925 | -10/Materials | Entered Mines 971 | -10/Mines | Learned location of Storage (-8) 1103 | -10/Mines | Assisted by bots powering up and referring to "LRC-V3" 1161 | -10/Mines | Received a Rocket Launcher from a helpful Derelict 1223 | -10/Mines | Discovered exit to Materials (range 9) 1333 | -10/Mines | Discovered exit to Materials (range 15) 1355 | -10/Mines | Assembled infested the area 1360 | -10/Mines | Assisted by a Guerilla fighting off Assembled 1398 | -10/Mines | Destroyed 8 combat bots 1425 | -10/Mines | Core integrity fell below 50% 1429 | -10/Mines | Core integrity fell below 20% 1432 | -10/Mines | Destroyed by D-53 Grenadier with Mini Grenade Launcher Last Messages --------------- 01377_ as-30951 destroyed. 01378_ The unstable cave ceiling collapses. 01378_ as-70540 destroyed. 01383_ The unstable cave ceiling collapses. 01386_ as-07186 destroyed. 01386_ as-24423 destroyed. 01386_ as-69304 destroyed. 01386_ Trooper 1b destroyed. 01388_ as-22056 destroyed. 01388_ as-39328 destroyed. 01388_ as-78531 destroyed. 01388_ as-53265 destroyed. 01415_ Rocket Launcher destroyed. 01415_ Ion Engine destroyed. 01418_ The unstable cave ceiling collapses. 01420_ EM Pulse Gun destroyed. 01420_ Arm. Wheel destroyed. 01424_ Assault Rifle destroyed. 01428_ Rocket Launcher destroyed. 01429_ The unstable cave ceiling collapses. Map ----- +----------------------------------------------------+ | | | | | | | | | | | | | | | | | | | | | ?????????????????????????????????????????????????? | | ?????????????????????????????????????????????????? | | ?????????????????????????????????????????????????? | | ?###?????????????????????????????????????????????? | | # ##????????????????????##??????????????????????? | | #?????????#??????##?? ##????????????????????? | | ?????????? ????## ? ###??????????????????? | | # #??????????? ??## ##?????????????????? | | # #????????????? ## #?????????????????? | | # #?????????????? ##????????????????? | | ##?????????????? """ ?????????????????? | | ##?????????????? """ ??????????????????? | | #??????????????? """ ###?????????????????? | | ##????????????????# ##????????????????? | | ! ##??????????????????# ##???????????????? | | #???????????????????# @ #???????????????? | | ##????????###??????## #???????????????? | | #???????? ?????# #???????????????? | | #??????? < ????# #???????????????? | | # ##???????? ?????# #???????????????? | | ####????????? ?????## #???????????????? | | ????????????? ??????## d #???????????????? | | ????????????? ??????### d ##???#???????????? | | ?????????????# #??????# #??? #???????????? | | ?????????????# #??????# #?? #???????????? | | ###??????????# #??????# ##?? #???????????? | | #?????????## #?????## ##??? #???????????? | | #?####???## ##????# ##?? #???????????? | | ### ##??# ##???## #?? #???????????? | | ## ##?# #????## ##? ####????????? | | ## #??# #?????# ## ##???????? | | ## #### ##????## ##??????? | | #?# ## ##????# ##?????? | | ### #?????## # #?????? | | ## ## ##?????# ### #?????? | | # #### #?????# #?# ##?????? | | ## ###??# #### #?# #??????? | | ## ####??#?# ####?# ##??????? | | ##??????"# #????# ##???????? | | ## #???????# #######????# ##????????? | +----------------------------------------------------+ Best States ------------- Heat Dissipation 25 Energy Generation 10 Energy Capacity 250 Matter Stores 300 Matter Capacity 300 Sight Range 16 Robot Scan Range 13 Terrain Scan Density 10 Resistance: KI 35 Resistance: TH 35 Resistance: EX 35 Resistance: EM 35 Resistance: I 35 Resistance: S 35 Resistance: P 35 Weapon Shielding 33 Evasion (%) 50 Targeting Accuracy 5 Recoil Reduction 2 Offensive Hacking 20 Item Schematics ----------------- None Robot Schematics ------------------ None Fabricated ------------ Nothing Alien Tech Used ----------------- None Achievements -------------- None Challenges ------------ None Game ------ Seed EnergyThunderPerforator Manual? 0 Play Time 00:34:58 Cumulative 42.5 hours Start 2021.02.13 @ 19:43:09 End 2021.05.13 @ 16:48:37 Sessions 2 Manual Loads 0 Difficulty Explorer Special Mode None Game No. 38 Rogue 20 Adventurer 3 Explorer 15 Win Type - Total 0 Types 0/0/0/0/0/0/0/0/0 Lore% 24 Gallery% 32 Achievement% 26 Wizard Run 0 Options --------- ASCII 0 Keyboard 0 Movement Mouse Keybinds 0 Fullscreen 1 Font 18/X11Bold Map View 76x50 Tactical HUD 1 Map Filters NONE Filters NONE Steam 1 RUN: 9ad394ff-8825-40eb-8de1-c30c6fd678d1